[Event "Kvibergspelen 2022"]
[Site "Kviberg Park Hotel & Conference, Krutvagen 2, Gothenburg, Sweden"]
[Date "2022.09.30"]
[Round "1.1"]
[White "Westlund, Tim"]
[Black "Agdestein, Simen"]
[Result "0-1"]
[TimeControl "15 minutes + 5 seconds per move from move one (Round 1 - 4) / 90 minutes + 30 seconds per move from move one (Round 5 - 8)"]
[BlackTitle "GM"]
[WhiteFideId "1754718"]
[BlackFideId "1500015"]
[WhiteElo "1772"]
[BlackElo "2576"]

1. e4 {[%clk 00:15:08]} {[%emt 00:00:01]} c5 {[%clk 00:15:06]} {[%emt
00:00:05]} 2. Nf3 {[%clk 00:15:07]} {[%emt 00:00:05]} Nc6 {[%clk 00:15:08]}
{[%emt 00:00:04]} 3. Bb5 {[%clk 00:15:05]} {[%emt 00:00:04]} Nf6 {[%clk
00:14:47]} {[%emt 00:00:28]} 4. Bxc6 {[%clk 00:14:29]} {[%emt 00:00:42]} dxc6
{[%clk 00:14:46]} {[%emt 00:00:06]} 5. d3 {[%clk 00:14:08]} {[%emt 00:00:26]}
Nd7 {[%clk 00:14:26]} {[%emt 00:00:25]} 6. Nc3 {[%clk 00:13:54]} {[%emt
00:00:19]} e5 {[%clk 00:14:28]} {[%emt 00:00:03]} 7. Be3 {[%clk 00:13:55]}
{[%emt 00:00:04]} Bd6 {[%clk 00:14:19]} {[%emt 00:00:14]} 8. Qd2 {[%clk
00:13:13]} {[%emt 00:00:47]} Nf8 {[%clk 00:14:18]} {[%emt 00:00:06]} 9. h3
{[%clk 00:11:58]} {[%emt 00:01:20]} Ne6 {[%clk 00:14:16]} {[%emt 00:00:07]} 10.
Ne2 {[%clk 00:11:32]} {[%emt 00:00:31]} O-O {[%clk 00:13:34]} {[%emt 00:00:47]}
11. O-O-O {[%clk 00:06:51]} {[%emt 00:04:46]} Nd4 {[%emt 00:01:34]} 12. Ng3
{[%clk 00:05:29]} {[%emt 00:00:01]} b5 {[%clk 00:12:52]} {[%emt 00:00:45]} 13.
Nh2 {[%emt 00:03:27]} b4 {[%clk 00:11:38]} 14. Ng4 {[%clk 00:02:39]} {[%emt
00:00:50]} Qa5 {[%clk 00:11:18]} {[%emt 00:00:25]} 15. Kb1 {[%clk 00:00:27]}
{[%emt 00:02:17]} Be6 {[%clk 00:11:20]} {[%emt 00:00:03]} 16. b3 {[%clk
00:00:15]} {[%emt 00:00:18]} Nb5 {[%clk 00:11:20]} {[%emt 00:00:05]} 17. Nh5
{[%clk 00:00:15]} {[%emt 00:00:05]} Nc3+ {[%clk 00:11:18]} {[%emt 00:00:07]} 18.
Kc1 {[%clk 00:00:14]} {[%emt 00:00:05]} Qa3# {[%clk 00:11:12]} 0-1

[Event "Kvibergspelen 2022"]
[Site "Kviberg Park Hotel & Conference, Krutvagen 2, Gothenburg, Sweden"]
[Date "2022.09.30"]
[Round "1.2"]
[White "Hillarp, Tiger"]
[Black "Hauksdottir, Hrund"]
[Result "1-0"]
[TimeControl "15 minutes + 5 seconds per move from move one (Round 1 - 4) / 90 minutes + 30 seconds per move from move one (Round 5 - 8)"]
[WhiteTitle "GM"]
[WhiteFideId "1700812"]
[BlackFideId "2302608"]
[WhiteElo "2511"]
[BlackElo "1767"]

1. Nf3 {[%clk 00:15:07]} {[%emt 00:00:02]} d5 {[%clk 00:15:08]} {[%emt
00:00:03]} 2. c4 {[%clk 00:15:10]} {[%emt 00:00:02]} c6 {[%clk 00:15:04]}
{[%emt 00:00:10]} 3. e3 {[%clk 00:15:12]} {[%emt 00:00:01]} Nf6 {[%clk
00:15:04]} {[%emt 00:00:05]} 4. Nc3 {[%clk 00:15:14]} {[%emt 00:00:03]} e6
{[%clk 00:14:48]} {[%emt 00:00:22]} 5. b3 {[%clk 00:15:17]} {[%emt 00:00:02]}
Nbd7 {[%clk 00:14:40]} {[%emt 00:00:14]} 6. Qc2 {[%clk 00:14:50]} {[%emt
00:00:30]} Bd6 {[%clk 00:12:40]} {[%emt 00:02:06]} 7. Bb2 {[%clk 00:14:51]}
{[%emt 00:00:04]} O-O {[%clk 00:11:47]} {[%emt 00:00:58]} 8. Be2 {[%clk
00:14:33]} {[%emt 00:00:22]} Re8 {[%clk 00:10:39]} {[%emt 00:01:14]} 9. d4
{[%clk 00:13:43]} {[%emt 00:00:55]} dxc4 {[%clk 00:07:41]} {[%emt 00:03:04]} 10.
bxc4 {[%clk 00:13:45]} {[%emt 00:00:03]} c5 {[%clk 00:06:42]} {[%emt 00:01:03]}
11. d5 {[%clk 00:12:21]} {[%emt 00:01:29]} exd5 {[%clk 00:05:58]} {[%emt
00:00:49]} 12. cxd5 {[%clk 00:12:24]} {[%emt 00:00:02]} Ne5 {[%clk 00:04:54]}
{[%emt 00:01:10]} 13. Rd1 {[%clk 00:09:49]} {[%emt 00:02:39]} a6 {[%clk
00:04:22]} {[%emt 00:00:38]} 14. a4 {[%clk 00:09:52]} {[%emt 00:00:02]} b6
{[%clk 00:03:31]} {[%emt 00:00:56]} 15. O-O {[%clk 00:08:21]} {[%emt 00:01:35]}
Qc7 {[%clk 00:03:07]} {[%emt 00:00:29]} 16. h3 {[%clk 00:03:06]} {[%emt
00:05:19]} Bb7 {[%clk 00:01:43]} {[%emt 00:01:30]} 17. Rfe1 {[%clk 00:02:53]}
{[%emt 00:00:18]} Rad8 {[%clk 00:01:36]} {[%emt 00:00:12]} 18. e4 {[%clk
00:02:56]} {[%emt 00:00:02]} Qe7 {[%clk 00:00:37]} {[%emt 00:01:04]} 19. Nd2
{[%clk 00:02:46]} {[%emt 00:00:15]} Ng6 {[%clk 00:00:36]} {[%emt 00:00:07]} 20.
Bf1 {[%clk 00:02:39]} {[%emt 00:00:11]} Be5 {[%clk 00:00:30]} {[%emt 00:00:11]}
21. g3 {[%clk 00:02:32]} {[%emt 00:00:12]} Nh5 {[%clk 00:00:18]} {[%emt
00:00:18]} 22. Ne2 {[%clk 00:02:17]} {[%emt 00:00:20]} Qg5 {[%clk 00:00:12]}
{[%emt 00:00:11]} 23. Nf3 {[%clk 00:02:07]} {[%emt 00:00:14]} Qf6 {[%clk
00:00:09]} {[%emt 00:00:08]} 24. Nxe5 {[%clk 00:02:07]} {[%emt 00:00:06]} Nxe5
{[%clk 00:00:12]} {[%emt 00:00:02]} 25. Bxe5 {[%clk 00:02:00]} {[%emt
00:00:11]} Qxe5 {[%clk 00:00:15]} {[%emt 00:00:02]} 26. Bg2 {[%clk 00:02:01]}
{[%emt 00:00:04]} Nf6 {[%clk 00:00:11]} {[%emt 00:00:09]} 27. Nc3 {[%clk
00:01:43]} {[%emt 00:00:24]} Bc8 {[%clk 00:00:08]} {[%emt 00:00:08]} 28. f4
{[%clk 00:01:44]} {[%emt 00:00:03]} Qc7 {[%clk 00:00:09]} {[%emt 00:00:05]} 29.
e5 {[%clk 00:01:46]} {[%emt 00:00:02]} Nh5 {[%clk 00:00:09]} {[%emt 00:00:06]}
30. Qf2 {[%clk 00:01:42]} {[%emt 00:00:08]} Bd7 {[%clk 00:00:07]} {[%emt
00:00:08]} 31. g4 {[%clk 00:01:31]} {[%emt 00:00:15]} 1-0

[Event "Kvibergspelen 2022"]
[Site "Kviberg Park Hotel & Conference, Krutvagen 2, Gothenburg, Sweden"]
[Date "2022.09.30"]
[Round "1.3"]
[White "Storskog, Thomas"]
[Black "Abdrlauf, Elham"]
[Result "0-1"]
[TimeControl "15 minutes + 5 seconds per move from move one (Round 1 - 4) / 90 minutes + 30 seconds per move from move one (Round 5 - 8)"]
[BlackTitle "IM"]
[WhiteFideId "1725998"]
[BlackFideId "1533533"]
[WhiteElo "1753"]
[BlackElo "2487"]

1. Nf3 {[%clk 00:15:08]} Nf6 {[%clk 00:14:54]} {[%emt 00:00:17]} 2. c4 {[%clk
00:14:46]} {[%emt 00:00:27]} e6 {[%clk 00:14:57]} {[%emt 00:00:02]} 3. e3
{[%clk 00:13:21]} {[%emt 00:01:31]} d5 {[%clk 00:14:59]} {[%emt 00:00:02]} 4.
Be2 {[%clk 00:12:57]} {[%emt 00:00:29]} c5 {[%clk 00:14:56]} {[%emt 00:00:09]}
5. O-O {[%clk 00:12:33]} {[%emt 00:00:28]} d4 {[%clk 00:14:59]} {[%emt
00:00:02]} 6. exd4 {[%clk 00:12:07]} {[%emt 00:00:31]} cxd4 {[%clk 00:15:03]} 7.
d3 {[%clk 00:10:55]} {[%emt 00:01:17]} Nc6 {[%clk 00:15:06]} {[%emt 00:00:02]}
8. Bf4 {[%clk 00:10:38]} {[%emt 00:00:21]} Be7 {[%clk 00:14:47]} {[%emt
00:00:25]} 9. Nbd2 {[%clk 00:10:30]} {[%emt 00:00:13]} Nh5 {[%clk 00:14:45]}
{[%emt 00:00:07]} 10. Bg3 {[%clk 00:10:25]} {[%emt 00:00:11]} O-O {[%clk
00:14:36]} {[%emt 00:00:13]} 11. Nxd4 {[%clk 00:10:01]} {[%emt 00:00:29]} Nxg3
{[%clk 00:14:39]} {[%emt 00:00:02]} 12. Nxc6 {[%clk 00:10:04]} {[%emt
00:00:02]} Nxe2+ {[%clk 00:14:42]} {[%emt 00:00:02]} 13. Qxe2 {[%clk 00:09:59]}
{[%emt 00:00:09]} bxc6 {[%clk 00:14:46]} {[%emt 00:00:02]} 14. a3 {[%clk
00:09:47]} {[%emt 00:00:17]} a5 {[%clk 00:14:49]} {[%emt 00:00:02]} 15. Rab1
{[%clk 00:09:36]} {[%emt 00:00:16]} c5 {[%clk 00:14:49]} {[%emt 00:00:04]} 16.
Qf3 {[%clk 00:09:08]} {[%emt 00:00:33]} Rb8 {[%clk 00:14:49]} {[%emt 00:00:04]}
17. Ne4 {[%clk 00:08:55]} {[%emt 00:00:19]} Bb7 {[%clk 00:14:47]} {[%emt
00:00:08]} 18. Qh3 {[%clk 00:08:41]} {[%emt 00:00:19]} Bxe4 {[%clk 00:14:48]}
{[%emt 00:00:04]} 19. dxe4 {[%clk 00:08:44]} {[%emt 00:00:01]} Qd4 {[%clk
00:14:51]} {[%emt 00:00:01]} 20. Rbd1 {[%clk 00:07:50]} {[%emt 00:01:00]} Qxb2
{[%clk 00:14:47]} {[%emt 00:00:09]} 21. Rd7 {[%clk 00:07:41]} {[%emt 00:00:14]}
Bf6 {[%clk 00:14:49]} {[%emt 00:00:02]} 22. Rd3 {[%clk 00:07:08]} {[%emt
00:00:39]} Bd4 {[%clk 00:14:49]} {[%emt 00:00:04]} 23. Qh4 {[%clk 00:06:57]}
{[%emt 00:00:17]} Qe2 {[%clk 00:14:46]} {[%emt 00:00:08]} 24. Rh3 {[%clk
00:06:17]} {[%emt 00:00:45]} h6 {[%clk 00:14:48]} {[%emt 00:00:03]} 25. Qg3
{[%clk 00:05:49]} {[%emt 00:00:33]} Rb2 {[%clk 00:14:38]} {[%emt 00:00:14]} 26.
a4 {[%clk 00:04:01]} {[%emt 00:01:54]} Rfb8 {[%clk 00:14:36]} {[%emt 00:00:06]}
27. Rh4 {[%clk 00:03:35]} {[%emt 00:00:33]} Qxf2+ {[%clk 00:14:10]} {[%emt
00:00:30]} 28. Qxf2 {[%clk 00:03:20]} {[%emt 00:00:20]} Rxf2 {[%clk 00:14:12]}
{[%emt 00:00:03]} 0-1

[Event "Kvibergspelen 2022"]
[Site "Kviberg Park Hotel & Conference, Krutvagen 2, Gothenburg, Sweden"]
[Date "2022.09.30"]
[Round "1.4"]
[White "Kucuksari, Kaan"]
[Black "Eriksson, Wilmer"]
[Result "1-0"]
[TimeControl "15 minutes + 5 seconds per move from move one (Round 1 - 4) / 90 minutes + 30 seconds per move from move one (Round 5 - 8)"]
[WhiteTitle "FM"]
[WhiteFideId "6380166"]
[BlackFideId "1768298"]
[WhiteElo "2482"]
[BlackElo "1752"]

1. d4 {[%clk 00:15:04]} {[%emt 00:00:05]} d5 {[%clk 00:15:07]} {[%emt
00:00:04]} 2. c4 {[%clk 00:15:05]} {[%emt 00:00:03]} e6 {[%clk 00:15:06]}
{[%emt 00:00:06]} 3. Nf3 {[%clk 00:15:08]} {[%emt 00:00:02]} Nf6 {[%clk
00:15:08]} {[%emt 00:00:02]} 4. g3 {[%clk 00:15:12]} {[%emt 00:00:02]} Bb4+
{[%clk 00:15:11]} {[%emt 00:00:02]} 5. Bd2 {[%clk 00:15:15]} {[%emt 00:00:02]}
Be7 {[%clk 00:15:15]} {[%emt 00:00:02]} 6. Bg2 {[%clk 00:15:18]} O-O {[%clk
00:15:17]} {[%emt 00:00:03]} 7. O-O {[%clk 00:15:20]} {[%emt 00:00:03]} Nbd7
{[%clk 00:15:14]} {[%emt 00:00:08]} 8. Qc2 {[%clk 00:15:21]} {[%emt 00:00:04]}
c6 {[%clk 00:15:00]} {[%emt 00:00:20]} 9. Bg5 {[%clk 00:15:23]} {[%emt
00:00:03]} b6 {[%clk 00:14:04]} {[%emt 00:01:01]} 10. Nbd2 {[%clk 00:15:24]}
{[%emt 00:00:04]} Bb7 {[%clk 00:14:04]} {[%emt 00:00:06]} 11. e4 {[%clk
00:15:21]} {[%emt 00:00:08]} dxe4 {[%clk 00:12:36]} {[%emt 00:01:33]} 12. Nxe4
{[%clk 00:15:22]} {[%emt 00:00:03]} Nxe4 {[%clk 00:12:30]} {[%emt 00:00:11]} 13.
Bxe7 {[%clk 00:15:23]} {[%emt 00:00:04]} Qxe7 {[%clk 00:12:33]} {[%emt
00:00:01]} 14. Qxe4 {[%clk 00:15:27]} {[%emt 00:00:03]} Rfd8 {[%clk 00:10:30]}
{[%emt 00:02:07]} 15. Rfe1 {[%clk 00:15:06]} {[%emt 00:00:26]} Nf6 {[%clk
00:09:27]} {[%emt 00:01:09]} 16. Qe3 {[%clk 00:15:08]} {[%emt 00:00:02]} Rac8
{[%clk 00:09:21]} {[%emt 00:00:11]} 17. b3 {[%clk 00:14:57]} {[%emt 00:00:16]}
Qc7 {[%clk 00:08:54]} {[%emt 00:00:32]} 18. c5 {[%clk 00:14:44]} {[%emt
00:00:19]} bxc5 {[%clk 00:07:41]} {[%emt 00:01:17]} 19. dxc5 {[%clk 00:14:47]}
{[%emt 00:00:02]} h6 {[%clk 00:06:18]} {[%emt 00:01:27]} 20. Ne5 {[%clk
00:14:37]} {[%emt 00:00:16]} Nd5 {[%clk 00:06:17]} {[%emt 00:00:06]} 21. Qf3
{[%clk 00:14:34]} {[%emt 00:00:08]} Nb4 {[%clk 00:05:52]} {[%emt 00:00:30]} 22.
Qe4 {[%clk 00:13:38]} {[%emt 00:01:00]} a5 {[%clk 00:05:26]} {[%emt 00:00:32]}
23. Bh3 {[%clk 00:13:21]} {[%emt 00:00:21]} Re8 {[%clk 00:03:34]} {[%emt
00:01:58]} 24. a3 {[%clk 00:12:57]} {[%emt 00:00:29]} Nd5 {[%clk 00:03:35]}
{[%emt 00:00:04]} 25. Nc4 {[%clk 00:12:45]} {[%emt 00:00:17]} Rcd8 {[%clk
00:02:53]} {[%emt 00:00:47]} 26. Rac1 {[%clk 00:12:49]} {[%emt 00:00:01]} Ba6
{[%clk 00:02:28]} {[%emt 00:00:31]} 27. Nd6 {[%clk 00:12:48]} {[%emt 00:00:05]}
Rxd6 {[%clk 00:02:12]} {[%emt 00:00:21]} 28. cxd6 {[%clk 00:12:52]} {[%emt
00:00:02]} Qxd6 {[%clk 00:02:16]} 29. Qa4 {[%clk 00:12:09]} {[%emt 00:00:47]}
Bb5 {[%clk 00:00:17]} {[%emt 00:02:05]} 30. Qxa5 {[%emt 00:00:07]} Rc8 {[%clk
00:00:17]} 31. a4 {[%clk 00:12:11]} {[%emt 00:00:06]} Bd3 {[%clk 00:00:20]}
{[%emt 00:00:01]} 32. Bg2 {[%clk 00:12:08]} {[%emt 00:00:09]} Bg6 {[%clk
00:00:18]} {[%emt 00:00:06]} 33. Qa6 {[%clk 00:12:08]} {[%emt 00:00:05]} Rc7
{[%clk 00:00:15]} {[%emt 00:00:08]} 34. a5 {[%clk 00:12:07]} {[%emt 00:00:05]}
Kh7 {[%clk 00:00:14]} {[%emt 00:00:07]} 35. Qc4 {[%clk 00:12:05]} {[%emt
00:00:06]} Nb4 {[%clk 00:00:12]} {[%emt 00:00:08]} 36. Rcd1 {[%clk 00:12:03]}
{[%emt 00:00:07]} Qe7 {[%clk 00:00:16]} 37. Be4 {[%clk 00:11:57]} {[%emt
00:00:11]} Bxe4 {[%clk 00:00:15]} {[%emt 00:00:07]} 38. Qxe4+ {[%clk 00:11:57]}
{[%emt 00:00:04]} g6 {[%clk 00:00:19]} 39. h4 {[%clk 00:11:50]} {[%emt
00:00:12]} Qc5 {[%clk 00:00:19]} {[%emt 00:00:05]} 40. h5 {[%clk 00:11:49]}
{[%emt 00:00:06]} Qxa5 {[%clk 00:00:00]} 1-0

[Event "Kvibergspelen 2022"]
[Site "Kviberg Park Hotel & Conference, Krutvagen 2, Gothenburg, Sweden"]
[Date "2022.09.30"]
[Round "1.5"]
[White "Acevedo Mendez, Lisseth"]
[Black "Hector, Jonny"]
[Result "0-1"]
[TimeControl "15 minutes + 5 seconds per move from move one (Round 1 - 4) / 90 minutes + 30 seconds per move from move one (Round 5 - 8)"]
[WhiteTitle "WIM"]
[BlackTitle "GM"]
[WhiteFideId "6502938"]
[BlackFideId "1700090"]
[WhiteElo "1751"]
[BlackElo "2454"]

1. d4 {[%clk 00:15:07]} {[%emt 00:00:02]} d5 {[%clk 00:15:08]} {[%emt
00:00:02]} 2. Bf4 {[%clk 00:15:09]} {[%emt 00:00:03]} c5 {[%clk 00:15:10]}
{[%emt 00:00:03]} 3. e3 {[%clk 00:15:10]} {[%emt 00:00:05]} Nc6 {[%clk
00:15:12]} {[%emt 00:00:02]} 4. c3 {[%clk 00:15:10]} {[%emt 00:00:06]} Nf6
{[%clk 00:15:02]} {[%emt 00:00:14]} 5. Bd3 {[%clk 00:14:57]} {[%emt 00:00:19]}
Qb6 {[%clk 00:14:48]} {[%emt 00:00:18]} 6. Qc1 {[%clk 00:13:10]} {[%emt
00:01:52]} Nh5 {[%clk 00:14:14]} {[%emt 00:00:39]} 7. Bg5 {[%clk 00:11:43]}
{[%emt 00:01:33]} h6 {[%clk 00:13:50]} {[%emt 00:00:28]} 8. Bh4 {[%clk
00:11:45]} {[%emt 00:00:03]} e5 {[%clk 00:13:34]} {[%emt 00:00:20]} 9. dxc5
{[%clk 00:11:30]} {[%emt 00:00:22]} Bxc5 {[%clk 00:13:33]} {[%emt 00:00:05]} 10.
Be2 {[%clk 00:11:31]} {[%emt 00:00:05]} g5 {[%clk 00:13:15]} {[%emt 00:00:22]}
11. Bxh5 {[%clk 00:11:21]} {[%emt 00:00:16]} gxh4 {[%clk 00:13:16]} {[%emt
00:00:02]} 12. Nf3 {[%clk 00:11:18]} {[%emt 00:00:10]} h3 {[%clk 00:12:51]}
{[%emt 00:00:29]} 13. Rg1 {[%clk 00:10:53]} {[%emt 00:00:31]} e4 {[%clk
00:12:25]} {[%emt 00:00:31]} 14. Nd4 {[%clk 00:10:44]} {[%emt 00:00:14]} Ne5
{[%clk 00:12:25]} {[%emt 00:00:05]} 15. Be2 {[%clk 00:10:24]} {[%emt 00:00:25]}
Bg4 {[%clk 00:12:21]} {[%emt 00:00:08]} 16. Qc2 {[%clk 00:09:51]} {[%emt
00:00:39]} Bxe2 {[%clk 00:12:10]} {[%emt 00:00:15]} 17. Kxe2 {[%clk 00:09:26]}
{[%emt 00:00:32]} Qa6+ {[%clk 00:11:39]} {[%emt 00:00:35]} 18. Kd1 {[%clk
00:09:08]} {[%emt 00:00:23]} hxg2 {[%clk 00:11:34]} {[%emt 00:00:10]} 19. Nd2
{[%clk 00:08:53]} {[%emt 00:00:20]} Rg8 {[%clk 00:11:30]} {[%emt 00:00:08]} 20.
b4 {[%clk 00:08:38]} {[%emt 00:00:20]} Bxd4 {[%clk 00:11:26]} {[%emt 00:00:09]}
21. cxd4 {[%clk 00:08:34]} {[%emt 00:00:10]} Nf3 {[%clk 00:11:04]} {[%emt
00:00:26]} 22. Nxf3 {[%clk 00:04:48]} {[%emt 00:03:51]} Qf1+ {[%clk 00:10:47]}
{[%emt 00:00:22]} 23. Rxf1 {[%clk 00:04:13]} {[%emt 00:00:41]} gxf1=Q+ {[%clk
00:10:43]} {[%emt 00:00:08]} 24. Ne1 {[%clk 00:04:15]} {[%emt 00:00:04]} Rg1
{[%clk 00:10:26]} {[%emt 00:00:21]} 25. Qe2 {[%clk 00:03:29]} {[%emt 00:00:51]}
Qxe2+ {[%clk 00:10:22]} {[%emt 00:00:09]} 26. Kxe2 {[%clk 00:03:33]} {[%emt
00:00:02]} Rc8 {[%clk 00:10:19]} {[%emt 00:00:08]} 27. Kd2 {[%clk 00:03:34]}
{[%emt 00:00:05]} f5 {[%clk 00:10:10]} {[%emt 00:00:12]} 28. a4 {[%clk
00:03:23]} {[%emt 00:00:17]} Rc4 {[%clk 00:09:53]} {[%emt 00:00:21]} 29. Rb1
{[%clk 00:02:54]} {[%emt 00:00:34]} Kd7 {[%clk 00:09:44]} {[%emt 00:00:14]} 30.
Rb2 {[%clk 00:02:56]} {[%emt 00:00:03]} f4 {[%clk 00:09:18]} {[%emt 00:00:31]}
31. Nc2 {[%clk 00:02:38]} {[%emt 00:00:24]} f3 {[%clk 00:09:16]} {[%emt
00:00:06]} 32. Na3 {[%clk 00:01:35]} {[%emt 00:01:09]} Rcc1 {[%clk 00:09:18]}
{[%emt 00:00:03]} 33. Rc2 {[%clk 00:01:21]} {[%emt 00:00:19]} Rgd1+ {[%clk
00:09:04]} {[%emt 00:00:18]} 34. Kc3 {[%clk 00:01:24]} {[%emt 00:00:03]} Rxc2+
{[%clk 00:09:05]} {[%emt 00:00:03]} 35. Kxc2 {[%clk 00:01:01]} {[%emt
00:00:29]} Rf1 {[%clk 00:09:06]} {[%emt 00:00:03]} 36. Nb5 {[%clk 00:00:55]}
{[%emt 00:00:12]} Rxf2+ {[%clk 00:09:02]} {[%emt 00:00:08]} 37. Kd1 {[%clk
00:00:57]} {[%emt 00:00:04]} a6 {[%clk 00:08:55]} {[%emt 00:00:12]} 38. Nc3
{[%clk 00:00:58]} {[%emt 00:00:04]} Kd6 {[%clk 00:08:57]} {[%emt 00:00:03]} 39.
b5 {[%clk 00:00:53]} {[%emt 00:00:11]} Rxh2 {[%clk 00:08:53]} {[%emt 00:00:08]}
40. Ke1 {[%clk 00:00:48]} {[%emt 00:00:11]} a5 {[%clk 00:08:33]} {[%emt
00:00:25]} 41. b6 {[%clk 00:00:35]} {[%emt 00:00:18]} Kc6 {[%clk 00:08:33]}
{[%emt 00:00:04]} 42. Kf1 {[%clk 00:00:31]} {[%emt 00:00:10]} Rc2 {[%clk
00:08:31]} {[%emt 00:00:06]} 43. Nb5 {[%clk 00:00:23]} {[%emt 00:00:14]} Kxb6
{[%clk 00:08:25]} {[%emt 00:00:09]} 0-1

[Event "Kvibergspelen 2022"]
[Site "Kviberg Park Hotel & Conference, Krutvagen 2, Gothenburg, Sweden"]
[Date "2022.09.30"]
[Round "1.6"]
[White "Stefansson, Vignir Vatnar"]
[Black "Cibo, Faris"]
[Result "1-0"]
[TimeControl "15 minutes + 5 seconds per move from move one (Round 1 - 4) / 90 minutes + 30 seconds per move from move one (Round 5 - 8)"]
[WhiteTitle "IM"]
[WhiteFideId "2308649"]
[BlackFideId "1764268"]
[WhiteElo "2452"]
[BlackElo "1750"]

1. e4 {[%clk 00:15:09]} c5 {[%clk 00:15:09]} {[%emt 00:00:03]} 2. c3 {[%clk
00:15:03]} {[%emt 00:00:10]} Nf6 {[%clk 00:15:09]} {[%emt 00:00:05]} 3. e5
{[%clk 00:15:06]} {[%emt 00:00:01]} Nd5 {[%clk 00:15:06]} {[%emt 00:00:08]} 4.
Nf3 {[%clk 00:15:09]} {[%emt 00:00:02]} Nc6 {[%clk 00:14:36]} {[%emt 00:00:36]}
5. Bc4 {[%clk 00:15:11]} {[%emt 00:00:03]} Nb6 {[%clk 00:14:35]} {[%emt
00:00:05]} 6. Bb3 {[%clk 00:15:14]} {[%emt 00:00:02]} c4 {[%clk 00:14:26]}
{[%emt 00:00:15]} 7. Bc2 {[%clk 00:15:17]} {[%emt 00:00:02]} d5 {[%clk
00:14:21]} {[%emt 00:00:09]} 8. exd6 {[%clk 00:15:20]} {[%emt 00:00:03]} Qxd6
{[%clk 00:14:09]} {[%emt 00:00:17]} 9. O-O {[%clk 00:15:22]} {[%emt 00:00:03]}
Bg4 {[%clk 00:13:47]} {[%emt 00:00:27]} 10. h3 {[%clk 00:15:24]} {[%emt
00:00:03]} Bxf3 {[%clk 00:13:38]} {[%emt 00:00:14]} 11. Qxf3 {[%clk 00:15:24]}
{[%emt 00:00:05]} g6 {[%clk 00:13:03]} {[%emt 00:00:40]} 12. Na3 {[%clk
00:15:03]} {[%emt 00:00:25]} Bg7 {[%clk 00:12:48]} {[%emt 00:00:20]} 13. b3
{[%clk 00:15:03]} {[%emt 00:00:06]} Ne5 {[%clk 00:11:55]} {[%emt 00:00:58]} 14.
Qe2 {[%clk 00:12:48]} {[%emt 00:02:20]} O-O {[%clk 00:11:31]} {[%emt 00:00:29]}
15. Nxc4 {[%clk 00:12:43]} {[%emt 00:00:11]} Nbxc4 {[%clk 00:11:29]} {[%emt
00:00:07]} 16. bxc4 {[%clk 00:12:45]} {[%emt 00:00:01]} Rac8 {[%clk 00:11:26]}
{[%emt 00:00:10]} 17. d3 {[%clk 00:12:26]} {[%emt 00:00:23]} Rfd8 {[%clk
00:11:20]} {[%emt 00:00:10]} 18. Be3 {[%clk 00:11:28]} {[%emt 00:01:03]} Nxd3
{[%clk 00:10:03]} {[%emt 00:01:23]} 19. Rad1 {[%clk 00:11:27]} {[%emt
00:00:06]} Nf4 {[%clk 00:10:06]} {[%emt 00:00:02]} 20. Qf3 {[%clk 00:11:28]}
{[%emt 00:00:04]} Qc6 {[%clk 00:07:34]} {[%emt 00:02:38]} 21. Qxf4 {[%clk
00:11:24]} {[%emt 00:00:08]} Bxc3 {[%clk 00:07:07]} {[%emt 00:00:32]} 22. c5
{[%clk 00:11:19]} {[%emt 00:00:10]} b6 {[%clk 00:06:43]} {[%emt 00:00:29]} 23.
Bb3 {[%clk 00:10:34]} {[%emt 00:00:50]} e6 {[%clk 00:06:46]} {[%emt 00:00:02]}
24. Rc1 {[%clk 00:10:29]} {[%emt 00:00:09]} Bb2 {[%clk 00:06:23]} {[%emt
00:00:29]} 25. Rc2 {[%clk 00:10:33]} {[%emt 00:00:01]} Ba3 {[%clk 00:06:22]}
{[%emt 00:00:06]} 26. cxb6 {[%clk 00:10:35]} {[%emt 00:00:03]} Qxc2 {[%clk
00:06:13]} {[%emt 00:00:14]} 27. Bxc2 {[%clk 00:10:39]} {[%emt 00:00:01]} Rxc2
{[%clk 00:06:16]} {[%emt 00:00:02]} 28. bxa7 {[%clk 00:10:42]} {[%emt
00:00:02]} 1-0